bitfinex-derivatives/quotes_ETHF0:USTF0_20250816
["timestamp","ask_amount","ask_price","bid_price","bid_amount"]
[1755304823301,1.3512,4471.5,4471.4,1.6562]
[1755304823600,1.0434,4471.5,4471.4,1.6562]
[1755304824500,1.6019,4471.5,4471.4,1.6562]
[1755304824801,1.0434,4471.5,4471.4,1.6562]
[1755304824997,3.2078,4472.2,4471.4,1.6562]
[1755304825298,4.4268,4472.2,4472.1,1.6562]
[1755304825495,0.9683,4472.2,4472.1,1.6562]
[1755304826001,1.3512,4472.2,4472.1,1.6562]
[1755304826396,1.6019,4472.2,4472.1,1.6562]
[1755304828100,1.3512,4472.2,4472.1,1.6562]
[1755304828702,1.0434,4472.2,4472.1,1.6562]
[1755304829699,3.2078,4472.5,4472.4,0.4357]
[1755304829898,0.1298167,4472.5,4472.4,1.6562]
[1755304830103,0.9284167,4472.5,4472.4,1.6562]
[1755304830399,1.7317167,4472.5,4472.4,1.6562]
[1755304830601,1.3512,4472.5,4472.4,1.6562]
[1755304831005,1.6019,4472.5,4472.4,1.6562]
[1755304831404,1.73176608,4472.5,4472.4,1.6562]
[1755304832700,1.04106608,4472.5,4471.6,3.2078]
[1755304832906,1.6019,4471.6,4471.5,1.2887]
[1755304833903,0.6605,4471.6,4471.3,0.9743]
[1755304834197,1.6019,4471.4,4471.3,1.41]
[1755304834399,1.6019,4471.4,4471.3,1.6562]
[1755304836701,1.6019,4471.4,4471.2,0.2406]
[1755304836702,0.5585,4471.3,4471.2,0.2406]
[1755304836903,1.6019,4471.3,4471.2,1.6562]
[1755304838408,1.3512,4471.3,4471.2,1.6562]
[1755304839003,0.4116,4471.3,4471.2,1.6562]
[1755304839209,0.7945,4471.3,4471.2,1.6562]
[1755304839408,0.4116,4471.3,4471.2,1.6562]
[1755304839901,0.165,4471.3,4471.2,1.6562]
[1755304840100,3.8683,4471.7,4471.6,0.6819]
[1755304840412,4.78439328,4471.7,4471.6,1.6562]
[1755304840902,4.60879328,4471.7,4471.6,0.4357]
[1755304841103,5.16729328,4471.7,4471.3,0.3675]
[1755304841311,1.6019,4471.5,4471.4,1.2887]
[1755304841510,1.73160699,4471.5,4471.4,1.6562]
[1755304841911,1.48090699,4471.5,4471.4,1.6562]
[1755304842110,1.17310699,4471.5,4471.4,1.6562]
[1755304842711,0.54130699,4471.5,4471.4,1.6562]
[1755304843007,0.79020699,4471.5,4471.4,1.6562]
[1755304843211,0.4955,4471.0,4470.9,1.481]
[1755304843411,1.0434,4471.0,4470.9,1.6562]
[1755304843710,0.7945,4471.0,4470.9,1.6562]
[1755304843907,0.4116,4471.0,4470.9,1.6562]
[1755304844413,0.3829,4471.3,4470.9,1.6562]
[1755304844611,0.5479,4471.2,4471.1,0.4214]
[1755304844805,0.5479,4471.2,4471.1,1.6562]
[1755304845211,1.6019,4471.2,4471.1,1.6562]
[1755304845809,0.165,4471.2,4471.1,1.6562]
[1755304846214,0.7945,4471.2,4471.1,1.6562]
[1755304846513,0.4116,4471.2,4471.1,1.0494]
[1755304846713,1.0434,4471.2,4471.1,1.0494]
[1755304847210,1.0434,4471.2,4470.5,3.2078]
[1755304847410,0.6605,4471.2,4470.5,3.2078]
[1755304847612,3.2078,4471.7,4470.8,1.6562]
[1755304847613,1.219,4470.9,4470.8,1.6562]
[1755304847910,1.6019,4470.9,4470.8,1.6562]
[1755304848612,1.6019,4470.9,4470.8,0.4158]
[1755304848613,1.0434,4470.9,4470.8,0.4158]
[1755304848910,1.5892,4470.9,4470.8,1.6544]
[1755304849716,0.9358,4471.6,4470.8,1.6544]
[1755304849917,0.7941,4470.9,4470.8,1.6725]
[1755304850416,1.3336,4470.9,4470.8,1.6725]
[1755304851416,0.4041,4470.9,4470.8,1.6725]
[1755304851914,1.5851,4470.9,4470.8,1.6725]
[1755304852216,1.5851,4470.9,4470.8,0.6306]
[1755304852614,1.5851,4470.9,4470.8,1.6628]
[1755304853318,1.3336,4470.9,4470.8,1.6628]
[1755304854512,1.0393,4470.9,4470.8,1.6628]
[1755304855113,0.6493,4470.7,4470.6,1.6628]
[1755304855310,1.5851,4470.7,4470.6,1.6628]
[1755304855713,1.5851,4470.7,4470.6,0.4242]
[1755304855914,1.5851,4470.7,4470.6,1.6628]
[1755304856316,1.5851,4470.7,4470.6,1.3039]
[1755304857021,1.5851,4470.7,4470.6,1.6628]
[1755304858213,0.39,4470.6,4469.9,0.6176]
[1755304858412,1.3336,4470.6,4470.5,0.6733]
[1755304858615,1.3336,4470.6,4470.5,1.6628]
[1755304858816,1.0393,4470.6,4470.5,1.6628]
[1755304859020,0.2943,4470.9,4470.5,1.6628]
[1755304859021,0.6843,4470.9,4470.5,1.6628]
[1755304859316,3.2078,4471.2,4470.8,1.3039]
[1755304859510,3.2078,4471.2,4470.2,3.04129303]
[1755304859511,0.12957164,4471.1,4471.0,2.59420303]
[1755304859714,3.2078,4471.2,4471.0,1.01300303]
[1755304860019,4.0019,4471.2,4471.1,1.6628]
[1755304860218,4.13146126,4471.2,4471.1,1.6628]
[1755304860419,4.37666126,4471.2,4471.1,1.6628]
[1755304860616,3.2078,4471.2,4471.1,1.6628]
[1755304861121,4.5414,4471.2,4471.1,1.6628]
[1755304861423,4.7929,4471.2,4471.1,1.6628]
[1755304862120,4.9225554,4471.2,4471.1,1.6628]
[1755304862418,4.6710554,4471.2,4471.1,1.6628]
[1755304862623,3.3374554,4471.2,4471.1,1.6628]
[1755304862925,0.7941,4471.9,4471.8,0.6733]
[1755304863222,0.92372145,4471.9,4471.8,1.6628]
[1755304863420,1.16892145,4471.9,4471.8,1.6628]
[1755304863621,0.53372145,4471.9,4471.8,1.6628]
[1755304864624,0.77892145,4471.9,4471.8,1.6628]
[1755304864927,0.12962145,4471.9,4471.8,1.6628]
[1755304865128,3.2078,4472.2,4471.8,0.6733]
[1755304865330,0.12958663,4472.1,4472.0,1.6628]
[1755304865524,3.2078,4472.2,4472.0,1.6628]
[1755304865726,3.37,4472.8,4472.7,0.1655]
[1755304865926,3.2078,4472.8,4472.7,1.6628]
[1755304866131,4.0019,4473.4,4473.3,1.6628]
[1755304866333,4.92231184,4473.4,4473.3,1.6628]
[1755304867231,3.2078,4473.4,4473.3,1.6628]
[1755304867429,0.39,4473.7,4473.3,1.6628]
[1755304867628,0.2419,4473.5,4473.4,1.4973]
[1755304867832,4.7929,4473.9,4473.8,0.6733]
[1755304868036,4.92261383,4473.9,4473.8,0.6733]
[1755304868334,1.0393,4473.2,4473.1,1.6628]
[1755304868637,1.5851,4472.6,4472.5,1.3039]
[1755304868832,0.39,4472.5,4471.7,0.9895]
[1755304869037,0.9436,4472.4,4472.3,0.1655]
[1755304869332,3.2078,4472.9,4472.4,0.2587]
[1755304869524,3.2078,4472.9,4472.0,2.59420303]
[1755304869525,0.7941,4472.9,4472.8,1.6628]
[1755304869730,1.3336,4472.9,4472.8,1.6628]
[1755304869929,1.5851,4472.9,4472.8,1.0494]
[1755304870231,1.5851,4472.2,4472.1,0.4188]
[1755304870424,0.2943,4472.4,4471.6,1.0322]
[1755304870630,0.6843,4472.4,4471.7,0.3589]
[1755304870828,1.0393,4472.3,4472.2,0.6733]
[1755304871129,0.6493,4472.0,4471.9,1.0494]
[1755304871331,0.6493,4472.0,4471.9,0.1655]
[1755304871536,0.4041,4472.0,4471.9,1.6628]
[1755304872034,3.2078,4472.5,4472.3,0.6733]
[1755304872340,3.2078,4472.5,4472.4,1.6628]
[1755304872641,3.37,4472.5,4472.4,1.6628]
[1755304872835,3.2078,4473.0,4472.5,0.6306]
[1755304873041,4.1086,4473.0,4472.9,0.7907]
[1755304873229,4.1086,4473.0,4472.0,3.04111303]
[1755304873230,4.1086,4473.0,4472.1,0.2587]
[1755304873433,0.2515,4472.9,4472.3,0.2587]
[1755304873634,0.1622,4472.1,4472.0,0.7907]
[1755304873940,1.0393,4472.1,4472.0,1.4041]
[1755304874236,0.39,4472.4,4472.0,1.6628]
[1755304874432,0.4041,4472.2,4472.1,1.4095]
[1755304874633,5.80200303,4473.0,4472.2,0.6306]
[1755304874634,3.2078,4473.0,4472.2,0.6306]
[1755304874839,0.6843,4472.9,4472.3,0.9895]
[1755304875141,1.5851,4472.4,4472.3,1.0506]
[1755304875437,1.3336,4472.9,4472.8,0.6733]
[1755304875631,1.5851,4472.9,4472.8,1.3039]
[1755304876242,1.3336,4472.9,4472.8,1.6628]
[1755304876439,1.5851,4472.9,4472.8,1.3039]
[1755304876637,1.0393,4472.9,4472.8,1.6628]
[1755304877138,0.2943,4473.2,4472.9,0.6306]
[1755304877341,0.4041,4473.0,4472.9,1.6628]
[1755304877737,0.6493,4473.0,4472.9,1.6628]
[1755304878042,1.0393,4473.0,4472.9,1.6628]
[1755304878340,0.4041,4473.0,4472.9,1.6628]
[1755304879137,0.7689,4473.0,4472.9,1.6628]
[1755304880738,0.3648,4474.0,4473.4,0.6536]
[1755304880937,0.3648,4474.0,4473.4,1.6376]
[1755304881534,3.3078,4474.2,4473.4,0.3595]
[1755304881840,0.1,4474.2,4474.1,1.6376]
[1755304882035,1.1115,4474.2,4474.1,1.6376]
[1755304882342,1.6544,4474.2,4474.1,1.6376]
[1755304884148,1.4055,4474.2,4474.1,1.6376]
[1755304884446,1.1115,4474.2,4474.1,1.6376]
[1755304884640,0.1,4474.2,4474.1,1.6376]
[1755304884851,1.1115,4474.2,4474.1,1.6376]
[1755304885145,1.6544,4474.2,4474.1,1.6376]
[1755304886044,1.6544,4474.2,4473.6,1.6376]
[1755304886045,1.3055,4473.7,4473.6,1.6376]
[1755304886338,0.6467,4473.4,4473.3,1.6376]
[1755304886540,1.5544,4473.4,4473.3,1.2781]
[1755304886744,0.3648,4474.0,4473.4,0.6002]
[1755304886937,1.0115,4474.0,4473.9,1.6376]
[1755304887336,1.3055,4474.0,4473.9,1.6376]
[1755304887540,1.5544,4474.0,4473.9,1.6376]
[1755304887835,0.6467,4474.0,4473.6,0.6245]
[1755304888040,1.5544,4473.3,4473.2,1.0362]
[1755304888346,1.5544,4473.3,4473.2,1.2781]
[1755304889243,0.4062,4473.0,4472.9,0.6536]
[1755304889444,1.3055,4473.0,4472.9,1.6376]
[1755304890441,1.0115,4473.0,4472.9,1.6376]
[1755304891147,1.3055,4473.0,4472.9,1.6376]
[1755304891448,1.5544,4473.0,4472.9,1.6376]
[1755304891642,1.5544,4473.0,4472.9,1.2781]
[1755304893640,0.9077,4472.9,4472.7,0.6245]
[1755304893945,1.5544,4472.8,4472.7,1.2781]
[1755304894250,0.6467,4472.2,4472.1,1.2781]
[1755304894545,0.3648,4473.2,4472.2,0.80639]
[1755304894848,0.5429,4473.1,4472.5,0.984]
[1755304895049,0.3648,4473.0,4472.6,0.6536]
[1755304895244,1.0115,4473.0,4472.9,0.6536]
[1755304895449,1.298,4473.0,4472.9,1.6376]
[1755304895848,3.614,4473.8,4473.7,0.6536]
[1755304896148,0.4062,4473.8,4473.7,1.6376]
[1755304896348,0.3648,4474.4,4473.7,0.6536]
[1755304896550,0.28895599,4474.1,4474.0,1.2781]
[1755304896746,1.5469,4474.1,4472.9,5.80200303]
[1755304896948,0.6513,4474.0,4473.2,0.984]
[1755304897149,0.3648,4473.9,4473.3,0.984]
[1755304897344,0.1593,4473.5,4473.4,1.2781]
[1755304897549,0.3648,4473.8,4473.7,0.2402]
[1755304897748,0.4648,4474.2,4473.8,1.6376]
[1755304898056,0.1,4474.2,4474.1,1.6376]
[1755304899058,4.24110303,4474.2,4473.8,0.6245]
[1755304899354,0.9332,4474.0,4473.9,0.2407]
[1755304899660,1.5469,4474.0,4473.9,0.2407]
[1755304900155,0.6467,4474.0,4473.6,0.7433]
[1755304900350,0.5354,4473.6,4473.4,0.2407]
[1755304900554,1.5469,4473.5,4473.4,0.2407]
[1755304901256,0.3648,4473.4,4472.6,0.984]
[1755304901459,0.2865,4473.4,4472.7,0.6245]
[1755304901655,3.2078,4473.5,4472.7,0.6245]
[1755304901860,3.614,4473.5,4473.4,1.6376]
[1755304902055,4.2193,4473.5,4473.4,1.6376]
[1755304902256,4.63475667,4473.5,4473.4,1.6376]
[1755304902456,3.2078,4473.5,4473.4,1.6376]
[1755304902657,0.6513,4474.1,4473.5,0.984]
[1755304902857,0.12893842,4474.0,4473.5,0.984]
[1755304903056,0.3489,4474.2,4472.9,3.04102303]
[1755304903057,1.67583842,4473.9,4473.8,0.6536]
[1755304903256,1.67583842,4473.9,4473.8,1.2781]
[1755304903452,0.53513842,4473.9,4473.8,1.6376]
[1755304903651,0.1,4474.2,4473.9,0.984]
[1755304903856,0.5354,4474.1,4473.8,0.6245]
[1755304904054,1.5469,4473.9,4473.5,0.3595]
[1755304904260,0.6467,4473.7,4473.6,1.2781]
[1755304904459,1.298,4473.7,4473.6,1.6376]
[1755304905063,1.5469,4473.7,4473.2,0.984]
[1755304905362,1.298,4473.4,4473.3,1.6376]
[1755304905857,1.298,4473.4,4472.8,0.6245]
[1755304906062,0.6467,4473.4,4472.6,0.44685]
[1755304906263,1.298,4473.3,4473.2,0.6536]
[1755304906457,1.298,4473.3,4473.2,1.6376]
[1755304908058,1.5469,4473.3,4473.2,1.2781]
[1755304908461,1.5469,4473.3,4473.2,1.656]
[1755304909265,1.298,4473.3,4473.2,1.656]
[1755304910765,1.5592,4473.3,4473.2,1.656]
[1755304911566,0.6467,4473.3,4472.5,0.44686]
[1755304911767,3.2078,4473.8,4472.5,0.44686]
[1755304911768,1.5886,4473.2,4473.1,1.2466]
[1755304912064,1.5886,4473.2,4473.1,1.6245]
[1755304912665,1.3274,4473.2,4473.1,1.6245]
[1755304913464,1.0466,4473.2,4473.1,1.6245]
[1755304913865,1.3274,4473.2,4473.1,1.6245]
[1755304914366,1.71776715,4473.2,4473.1,1.6245]
[1755304915960,0.2349,4472.7,4472.6,0.2465]
[1755304916165,1.0466,4472.7,4472.6,0.6562]
[1755304916468,0.8117,4473.4,4473.3,0.6562]
[1755304916668,0.9409009,4473.4,4473.3,1.6245]
[1755304918268,0.5631009,4473.4,4473.3,1.6245]
[1755304918762,0.1292009,4473.4,4473.3,1.6245]
[1755304919764,1.7178009,4473.4,4473.3,1.2466]
[1755304919964,1.7178009,4473.4,4473.3,0.9972]
[1755304921062,1.7178009,4473.4,4473.3,1.6245]
[1755304921665,1.7178009,4473.4,4473.3,1.2466]
[1755304921871,0.6688,4472.5,4472.4,3.2078]
[1755304922072,1.5886,4472.5,4472.4,3.2078]
[1755304922266,1.5886,4472.5,4472.4,3.7982]
[1755304922466,1.5886,4472.5,4472.4,3.9585]
[1755304922768,0.6688,4471.9,4471.8,1.2466]
[1755304922963,1.5886,4471.9,4471.8,1.2466]
[1755304923164,1.2108,4471.9,4471.8,0.9972]
[1755304923665,1.5886,4471.9,4471.8,1.6245]
[1755304924766,0.3778,4472.2,4472.1,0.1603]
[1755304924969,1.45650501,4472.2,4472.1,1.2466]
[1755304925164,1.71770501,4472.2,4472.1,1.2466]
[1755304926672,0.94080501,4472.2,4472.1,1.6245]
[1755304927173,1.71770501,4472.2,4472.1,1.2466]
[1755304927369,1.0466,4472.2,4472.1,1.6245]
[1755304927570,3.2078,4472.3,4472.1,1.6245]
[1755304927770,3.2078,4472.3,4472.2,1.6245]
[1755304928072,3.33663796,4472.3,4472.2,1.6245]
[1755304928267,3.50993796,4472.3,4472.2,1.6245]
[1755304928465,3.77053796,4472.3,4472.2,1.6245]
[1755304928670,3.2078,4472.3,4472.2,1.6245]
[1755304929070,3.5856,4472.8,4472.7,0.6562]
[1755304929271,3.2078,4473.3,4472.7,1.6245]
[1755304929574,1.17541639,4473.2,4473.1,1.6245]
[1755304929775,0.1733,4473.2,4473.1,1.6245]
[1755304929972,3.2078,4473.3,4473.1,1.6245]
[1755304930177,3.2078,4473.3,4473.2,1.6245]
[1755304931076,3.2078,4473.8,4473.2,0.6562]
[1755304931379,1.3274,4473.4,4473.3,1.6245]
[1755304932280,1.5886,4473.4,4473.3,1.2466]
[1755304932579,0.6688,4473.1,4473.0,0.5904]
[1755304932780,0.3778,4473.1,4473.0,1.6245]
[1755304933080,4.2544,4473.3,4473.2,1.6245]
[1755304933268,4.5352,4473.3,4473.2,1.6245]
[1755304933474,4.7964,4473.3,4473.2,1.6245]
[1755304933875,4.7964,4473.3,4473.2,1.2466]
[1755304935778,0.6688,4473.1,4473.0,0.5904]
[1755304935984,1.5886,4473.1,4473.0,0.5904]
[1755304936283,1.5886,4473.1,4473.0,0.9972]
[1755304936479,1.3274,4473.1,4473.0,1.6245]
[1755304938579,0.1733,4473.1,4473.0,1.6245]
[1755304938781,3.2078,4473.3,4473.2,1.6255]
[1755304939286,3.3715,4473.3,4473.2,1.6255]
[1755304939486,4.0159,4473.3,4473.2,1.6255]
[1755304940188,4.0159,4473.3,4473.2,0.6348]
[1755304940377,4.7787,4473.3,4473.2,1.2624]
[1755304940787,4.7787,4473.3,4472.9,0.9907]
[1755304940990,3.8708,4473.3,4472.9,0.3631]
[1755304941288,1.5709,4473.1,4473.0,1.0179]
[1755304942089,1.5709,4472.8,4472.7,1.2624]
[1755304942589,1.5709,4472.8,4472.7,1.6255]
[1755304942889,1.3202,4472.8,4472.7,1.6255]
[1755304943184,20.793,4473.2,4473.1,1.6255]
[1755304943385,0.663,4472.7,4472.6,1.2484]
[1755304943586,1.5709,4472.7,4472.6,1.6255]
[1755304943891,1.3202,4472.7,4472.6,1.6255]
[1755304944079,1.0524,4472.7,4472.6,1.6255]
[1755304945282,0.8081,4472.7,4472.6,1.6255]
[1755304945490,0.3894,4473.0,4472.9,0.3903]
[1755304945786,0.1637,4473.0,4472.9,1.6255]
[1755304946087,1.3202,4473.0,4472.9,1.6255]
[1755304946281,3.4585,4473.3,4472.9,1.6255]
[1755304946483,1.5709,4473.1,4473.0,1.6255]
[1755304946684,1.69978114,4473.1,4472.7,0.3771]
[1755304946891,0.9079,4473.0,4472.0,1.43761]
[1755304947091,0.9308,4473.0,4472.9,1.6255]
[1755304947290,0.4187,4473.0,4472.9,1.6255]
[1755304947890,0.3894,4473.7,4473.6,0.6348]
[1755304948093,21.97126391,4473.7,4473.6,1.6255]
[1755304948394,1.18126391,4473.7,4473.6,1.6255]
[1755304948689,21.97126391,4473.7,4473.6,1.6255]
[1755304949292,22.48976391,4473.7,4473.6,1.6255]
[1755304949792,22.48976391,4473.7,4473.6,1.2624]
[1755304950195,22.48876391,4473.7,4473.6,1.6255]
[1755304950689,22.48876391,4473.7,4473.6,1.2624]
[1755304950890,0.5185,4473.6,4472.9,0.6276]
[1755304951189,0.8081,4473.1,4473.0,1.6255]
[1755304951695,1.3031,4473.6,4473.5,0.6348]
[1755304951896,1.18125138,4473.6,4473.5,1.6255]
[1755304952595,21.96825138,4473.6,4473.5,1.6255]
[1755304953396,0.12885138,4473.6,4473.5,1.6255]
[1755304953599,23.9938,4473.8,4473.5,1.6255]
[1755304953790,0.12885767,4473.7,4473.6,1.6255]
[1755304953990,0.29255767,4473.7,4473.6,1.6255]
[1755304954197,21.72195767,4473.7,4473.6,1.6255]
[1755304955992,0.12885767,4473.7,4473.6,1.6255]
[1755304956698,1.18125767,4473.7,4473.6,1.6255]
[1755304957694,0.1,4474.2,4473.6,1.6255]
[1755304957695,0.1,4474.2,4474.1,2.07221]
[1755304957891,23.9898,4474.9,4474.1,4.66641303]
[1755304958094,23.9898,4474.9,4474.8,0.6348]
[1755304958297,3.2078,4474.9,4474.8,1.6255]
[1755304958499,23.9898,4474.9,4474.8,1.6255]
[1755304959895,20.781,4474.9,4474.8,1.6255]
[1755304960099,20.78,4475.0,4474.9,0.8531]
[1755304960403,3.2078,4475.6,4475.5,1.6255]
[1755304960603,25.308,4475.6,4475.5,1.6255]
[1755304960806,25.5587,4475.6,4475.5,0.6408]
[1755304961196,25.5587,4475.6,4475.5,1.0179]
[1755304961396,25.5587,4475.6,4475.5,1.2624]
[1755304961598,25.5587,4475.6,4475.5,1.6255]
[1755304962094,25.305,4475.6,4475.5,1.6255]
[1755304962500,25.304,4475.6,4475.5,1.6255]
[1755304962898,4.528,4475.6,4475.5,1.6255]
[1755304963296,3.2078,4475.6,4475.5,1.6255]
[1755304963602,3.6265,4475.6,4475.5,1.6255]
[1755304963804,4.7787,4475.6,4475.5,0.6276]
[1755304964003,4.7787,4475.6,4475.5,1.0179]
[1755304964504,4.2602,4475.6,4475.5,1.6255]
[1755304964703,25.0332,4475.6,4475.5,1.6255]
[1755304965004,24.7879,4475.6,4475.5,1.6255]
[1755304965205,24.6428,4475.6,4475.5,0.3903]
[1755304965506,24.6428,4475.6,4475.5,1.0179]
[1755304965902,25.5507,4475.6,4475.5,1.0179]
[1755304966905,4.7787,4475.6,4475.5,1.2624]
[1755304967102,25.5487,4475.6,4475.5,1.2624]
[1755304967302,25.5487,4475.6,4474.8,0.6276]
[1755304967503,0.3894,4475.5,4474.9,0.3631]
[1755304967708,1.0524,4475.5,4475.4,0.1648]
[1755304967910,1.5709,4475.5,4475.4,0.7924]
[1755304968913,1.5709,4475.5,4475.4,1.0179]
[1755304969110,1.5709,4475.5,4475.4,1.2737]
[1755304969409,1.5709,4475.5,4475.4,1.6379]
[1755304971309,1.3202,4475.5,4475.4,1.6379]
[1755304971509,1.5774,4475.5,4475.4,1.6379]
[1755304972212,1.5774,4475.5,4475.4,1.2737]
[1755304973612,1.5245,4475.0,4474.9,1.5998]
[1755304973908,22.2865,4475.0,4474.9,1.5998]
[1755304974307,22.2865,4475.0,4474.9,1.2356]
[1755304974704,22.2865,4475.0,4474.9,1.5998]
[1755304975006,22.0293,4475.0,4474.9,1.5998]
[1755304975209,22.2865,4475.0,4474.9,1.5998]
[1755304976210,21.7728,4475.0,4474.9,1.5998]
[1755304976412,1.0108,4475.0,4474.9,1.5998]
[1755304976607,21.7708,4475.0,4474.9,1.5998]
[1755304976813,1.0108,4475.0,4474.9,1.5998]
[1755304977112,21.7698,4475.0,4474.9,1.5998]
[1755304977502,0.7704,4475.0,4474.9,1.5998]
[1755304977702,21.5284,4475.0,4474.9,1.5998]
[1755304978410,21.7688,4475.0,4474.9,1.5998]
[1755304978908,21.5284,4475.0,4474.9,1.5998]
[1755304979809,0.7704,4475.0,4474.9,1.5998]
[1755304980014,21.5274,4475.0,4474.9,1.5998]
[1755304980513,21.7678,4475.0,4474.9,1.5998]
[1755304980713,21.7678,4475.0,4474.9,0.5834]
[1755304980714,22.2815,4475.0,4474.9,0.5834]
[1755304981409,21.3988,4475.0,4474.9,0.9798]
[1755304981615,22.0233,4475.0,4474.9,1.5998]
[1755304981913,21.7658,4475.0,4474.9,1.5998]
[1755304982110,3.6092,4475.6,4475.5,1.5998]
[1755304982317,23.9628,4475.6,4475.5,4.19400303]
[1755304982510,3.2078,4475.6,4475.5,4.19400303]
[1755304982710,23.9618,4475.6,4475.5,4.19400303]
[1755304982906,0.1607,4475.3,4475.2,1.5998]
[1755304983112,20.754,4475.4,4475.2,0.6522]
[1755304983313,3.2078,4475.6,4475.5,1.5998]
[1755304983711,3.6092,4475.6,4475.5,1.5998]
[1755304983914,3.9782,4475.6,4475.5,1.5998]
[1755304984111,4.7323,4475.6,4474.7,2.59420303]
[1755304984416,0.6418,4475.1,4475.0,1.2356]
[1755304984717,1.2673,4475.1,4475.0,1.5998]
[1755304985210,0.6418,4475.1,4474.7,0.2475]
[1755304985410,1.5245,4474.8,4474.7,1.2356]
[1755304986714,22.2755,4474.8,4474.7,1.5998]
[1755304987414,1.5245,4474.8,4474.7,1.5998]
[1755304987613,22.2745,4474.8,4474.7,1.5998]
[1755304987814,22.0173,4474.8,4474.7,1.5998]
[1755304989018,3.4485,4475.6,4475.5,0.4211]
[1755304989222,3.81642654,4475.6,4475.5,4.19400303]
[1755304989411,4.10199293,4475.6,4475.5,4.19400303]
[1755304989610,4.34239293,4475.6,4475.5,4.19400303]
[1755304989817,3.57229293,4475.6,4475.5,4.19400303]
[1755304990218,3.2078,4475.6,4475.5,4.19400303]
[1755304992217,3.9782,4476.3,4476.2,1.5998]
[1755304992416,4.7323,4476.3,4475.9,2.59420303]
[1755304992613,0.369,4475.8,4475.7,1.5998]
[1755304992818,0.369,4475.8,4474.3,1.11672]
[1755304992819,24.5625,4476.3,4476.2,1.3523]
[1755304993012,24.1935,4476.3,4476.2,1.5998]
[1755304993212,3.2078,4476.3,4476.2,1.5998]
[1755304994517,21.3848,4476.7,4476.6,0.6522]
[1755304994722,22.12338855,4476.7,4476.6,1.5998]
[1755304994920,20.743,4476.9,4476.8,0.2311]
[1755304995124,20.9837,4476.9,4476.8,1.5998]
[1755304995317,0.7704,4476.9,4476.8,1.5998]
[1755304995622,0.7704,4476.9,4476.8,0.6522]
[1755304995623,1.514,4476.9,4476.8,0.6522]
[1755304996017,1.514,4476.9,4476.8,1.0164]
[1755304996322,1.2568,4476.9,4476.8,1.5998]
[1755304996521,3.2078,4477.0,4476.4,0.3642]
[1755304996721,22.256,4476.9,4476.8,1.2356]
[1755304997023,21.5104,4476.9,4476.8,1.5998]
[1755304997319,22.254,4476.9,4476.8,0.3964]
[1755304997522,1.514,4476.3,4476.2,0.9798]
[1755304998026,0.4014,4476.0,4475.9,0.7487]
[1755304998225,21.9958,4476.0,4475.9,1.5998]
[1755304999724,21.3808,4476.0,4475.7,3.2078]
[1755304999916,0.642,4475.8,4475.7,3.2078]
[1755305000122,1.5133,4475.8,4475.7,3.2078]
[1755305000427,1.5133,4475.8,4475.7,4.4651]
[1755305000616,1.5133,4475.8,4475.7,4.8386]
[1755305001020,1.0177,4475.8,4475.7,4.8386]
[1755305001426,1.2617,4475.8,4475.7,4.8386]
[1755305001825,0.7939,4475.8,4475.7,4.8386]
[1755305002021,1.2617,4475.8,4475.7,4.8386]
[1755305002221,1.0177,4475.8,4475.7,4.8386]
[1755305002424,1.0177,4475.8,4475.7,4.4651]
[1755305002623,0.7939,4475.8,4475.7,4.8386]
[1755305002824,0.7939,4475.8,4475.7,1.6308]
[1755305003117,0.2436,4475.8,4475.7,1.6308]
[1755305003317,1.2617,4475.8,4475.7,1.6308]
[1755305003724,1.5133,4475.8,4475.7,1.6308]
[1755305003925,1.5133,4475.8,4475.7,1.2573]
[1755305004526,1.5133,4475.8,4475.7,1.6308]
[1755305004829,1.2617,4475.8,4475.7,1.6308]
[1755305005017,1.0177,4475.8,4475.7,1.6308]
[1755305005218,20.733,4475.9,4475.7,0.6475]
[1755305005431,20.733,4475.9,4475.8,4.22500303]
[1755305005629,20.9076,4475.9,4475.8,4.22500303]
[1755305005826,21.5269,4475.9,4475.8,4.22500303]
[1755305006327,0.7939,4475.9,4475.8,4.22500303]
[1755305007031,0.00449804,4476.0,4475.9,1.6308]
[1755305009025,0.79839804,4476.0,4475.9,1.6308]
[1755305009820,1.51779804,4476.0,4475.9,1.6308]
[1755305010030,1.51779804,4476.0,4475.9,1.2573]
[1755305010426,0.642,4475.8,4475.7,1.0132]
[1755305010631,1.5133,4475.8,4475.7,1.0132]
[1755305011033,1.5133,4475.8,4475.7,1.2573]
[1755305012230,0.8936,4475.8,4475.2,0.9833]
[1755305012430,0.7939,4475.7,4475.6,0.6475]
[1755305012625,0.7939,4475.7,4475.6,1.6308]
[1755305013233,0.00449804,4476.0,4475.9,0.6475]
[1755305013535,0.00449804,4476.0,4475.9,4.67153303]
[1755305015532,1.0177,4477.1,4477.0,1.6308]
[1755305015832,1.5133,4477.1,4477.0,1.6308]
[1755305016234,1.38523916,4477.1,4477.0,1.2573]
[1755305016434,32.17,4477.2,4477.1,0.3735]
[1755305016638,53.88883721,4477.2,4477.1,1.2573]
[1755305016836,53.63723721,4477.2,4477.1,1.6308]
[1755305017238,53.88683721,4477.2,4477.1,1.6308]
[1755305017644,53.88683721,4477.2,4477.1,1.2573]
[1755305017839,1.5133,4476.9,4476.8,1.6308]
[1755305018040,0.1746,4476.4,4476.3,3.6112]
[1755305018347,21.3407,4476.9,4476.3,3.8553]
[1755305018648,0.7939,4476.4,4476.3,4.4651]
[1755305018843,1.0177,4476.4,4476.3,1.6308]